bitfinex-derivatives/quotes_ETHF0:USTF0_20250205
["timestamp","ask_amount","ask_price","bid_price","bid_amount"]
[1738793785643,3.2078,2795.6,2794.8,3.2078]
[1738793785841,3.2078,2795.6,2793.4,4.7441028]
[1738793785842,3.2078,2796.3,2795.2,3.2078]
[1738793786039,3.2078,2796.6,2795.9,3.2078]
[1738793786241,0.05962328,2796.9,2795.9,3.2078]
[1738793786445,0.00536155,2796.0,2795.9,3.2078]
[1738793795246,0.00536155,2796.0,2795.9,8.2078]
[1738793795551,0.00536155,2796.0,2795.9,3.2078]
[1738793796853,0.00536155,2796.0,2795.9,8.2078]
[1738793797054,0.05962328,2796.9,2795.9,8.2078]
[1738793797256,0.05962328,2796.9,2796.8,3.2078]
[1738793797656,0.7392,2798.2,2796.8,8.2078]
[1738793797852,0.7392,2798.2,2797.2,3.2078]
[1738793798051,0.7392,2798.2,2797.6,3.2078]
[1738793798246,0.00536155,2798.0,2797.6,3.2078]
[1738793798654,0.00536155,2798.0,2797.4,0.00536155]
[1738793798854,0.00536155,2798.0,2797.6,3.2078]
[1738793799946,0.00536155,2798.0,2797.9,3.2078]
[1738793800164,0.00536155,2798.0,2797.6,3.2078]
[1738793802156,0.00536155,2798.0,2797.9,3.2078]
[1738793803562,0.00536155,2798.0,2797.6,3.2078]
[1738793805157,0.00536155,2798.0,2797.4,0.00536155]
[1738793805158,3.78496155,2798.0,2797.4,0.00536155]
[1738793805459,3.78496155,2798.0,2796.9,3.2078]
[1738793805460,3.2078,2797.5,2796.9,3.2078]
[1738793805661,3.2078,2797.0,2796.2,3.2078]
[1738793805853,3.1145,2797.4,2796.2,3.2078]
[1738793805854,6.3223,2797.4,2796.2,3.2078]
[1738793806159,3.2078,2797.1,2796.2,3.2078]
[1738793806360,0.57201,2797.0,2796.2,3.2078]
[1738793806561,3.2078,2796.8,2796.2,3.2078]
[1738793807055,0.57214,2796.4,2795.1,3.2078]
[1738793807257,2.326,2796.3,2794.8,3.9308]
[1738793807557,2.326,2796.3,2795.1,3.2078]
[1738793807558,0.00536155,2796.0,2795.1,3.2078]
[1738793807751,0.00536155,2796.0,2795.4,3.2078]
[1738793807957,0.00536155,2796.0,2795.7,3.2078]
[1738793808355,0.00536155,2796.0,2795.2,3.2078]
[1738793809558,3.2078,2795.9,2795.2,3.2078]
[1738793809858,2.15327,2795.8,2795.2,3.2078]
[1738793810158,0.57227,2795.7,2794.6,3.2078]
[1738793810349,0.57227,2795.7,2793.4,4.7441028]
[1738793810350,3.2078,2795.6,2794.3,3.2078]
[1738793810663,3.2078,2795.6,2794.1,0.29169578]
[1738793810664,3.2078,2795.6,2794.4,3.2078]
[1738793812253,0.57237,2795.3,2794.4,3.2078]
[1738793812458,3.2078,2795.1,2794.4,3.2078]
[1738793813958,3.78021,2795.1,2794.4,3.2078]
[1738793814161,3.2078,2795.1,2794.0,3.2078]
[1738793814357,3.2078,2794.7,2794.0,3.2078]
[1738793815954,1.574,2794.8,2794.6,3.2078]
[1738793816159,1.571,2795.5,2794.6,3.2078]
[1738793816362,0.00536155,2795.0,2794.6,3.2078]
[1738793817664,0.00536155,2795.0,2794.9,3.2078]
[1738793818766,0.57248,2794.7,2794.1,3.2078]
[1738793818961,0.00536155,2795.0,2794.1,3.2078]
[1738793819167,0.57251,2794.6,2794.1,3.2078]
[1738793819665,5.34864,2794.9,2794.1,3.2078]
[1738793820265,4.7762,2794.9,2794.1,3.2078]
[1738793820568,5.34864,2794.9,2794.1,3.2078]
[1738793821068,4.7762,2794.9,2794.1,3.2078]
[1738793821765,3.2078,2794.9,2794.4,3.2078]
[1738793822659,3.78025,2794.9,2794.1,3.2078]
[1738793822864,0.57249,2794.7,2794.1,3.2078]
[1738793823064,3.2078,2794.4,2793.0,3.2078]
[1738793823266,0.57267,2793.8,2793.0,3.2078]
[1738793823557,3.2078,2794.1,2793.0,3.2078]
[1738793823558,0.00536155,2794.0,2793.0,3.2078]
[1738793823762,3.2078,2793.7,2793.0,3.2078]
[1738793823962,3.21316155,2794.0,2793.0,3.2078]
[1738793825073,3.78579155,2794.0,2793.0,3.2078]
[1738793825368,3.21316155,2794.0,2793.0,3.2078]
[1738793825566,0.5727,2793.7,2793.0,3.2078]
[1738793825759,1.56,2793.6,2792.7,3.2078]
[1738793825967,4.7678,2793.6,2792.7,3.2078]
[1738793826159,4.7678,2793.6,2793.0,3.2078]
[1738793826366,1.56,2793.6,2793.0,3.2078]
[1738793828069,0.00536155,2794.0,2793.3,3.2078]
[1738793828270,0.57264,2793.9,2792.9,3.2078]
[1738793828771,3.21316155,2794.0,2793.2,3.2078]
[1738793828972,0.00536155,2794.0,2793.5,3.2078]
[1738793829174,0.00536155,2794.0,2793.8,3.2078]
[1738793829876,3.99,2795.4,2793.8,8.2078]
[1738793830071,3.2078,2795.4,2794.8,3.2078]
[1738793830373,0.57262,2794.0,2793.9,3.2078]
[1738793830573,0.5728,2793.2,2792.2,3.2078]
[1738793830778,3.2078,2792.5,2791.8,3.2078]
[1738793830977,4.8068,2792.5,2791.8,3.2078]
[1738793831874,0.00537163,2792.4,2792.1,3.2078]
[1738793832674,4.8138,2793.6,2792.2,4.73745651]
[1738793832872,3.2078,2792.8,2792.2,3.2078]
[1738793833067,3.2078,2792.7,2791.9,3.2078]
[1738793833271,3.2078,2792.5,2791.9,3.2078]
[1738793833575,1.612,2792.4,2791.5,3.2078]
[1738793833771,3.2078,2792.2,2791.5,3.2078]
[1738793833971,0.573,2792.2,2791.9,0.00537163]
[1738793834173,3.2078,2792.0,2791.2,3.2078]
[1738793834476,3.2078,2791.8,2791.2,3.2078]
[1738793834979,3.2078,2792.2,2791.2,3.2078]
[1738793835178,3.2078,2791.8,2791.5,0.04096269]
[1738793835369,0.768,2791.7,2791.5,0.04096269]
[1738793836086,0.768,2791.7,2791.6,0.04096269]
[1738793836279,5.768,2791.7,2790.5,3.2078]
[1738793836476,3.2078,2790.7,2790.1,3.2078]
[1738793836682,3.2078,2790.5,2790.4,0.01408424]
[1738793836985,4.8198,2790.5,2789.1,3.2078]
[1738793837282,4.8198,2790.5,2786.8,19.50191404]
[1738793837283,3.2078,2789.2,2787.9,3.2078]
[1738793837480,3.2078,2788.7,2787.9,3.2078]
[1738793837687,3.2078,2788.9,2788.3,3.2078]
[1738793838091,3.20771125,2789.2,2788.3,3.2078]
[1738793838280,3.2078,2789.6,2788.3,3.2078]
[1738793838678,3.2078,2789.6,2788.6,3.2078]
[1738793838985,3.2078,2789.6,2788.7,1.6063]
[1738793839183,3.2078,2789.1,2788.7,1.6063]
[1738793839383,1.7,2790.0,2788.9,0.01653413]
[1738793839384,0.00537163,2789.4,2788.9,0.01653413]
[1738793839684,3.2078,2789.0,2788.9,0.01653413]
[1738793840089,4.9088,2789.0,2788.9,0.01653413]
[1738793840683,4.9088,2789.0,2787.9,3.2078]
[1738793840879,3.2078,2788.3,2787.7,0.7993]
[1738793841084,3.2078,2788.0,2787.7,0.7993]
[1738793841294,3.2078,2788.3,2787.7,0.7993]
[1738793841992,3.2078,2788.9,2787.9,3.2078]
[1738793842494,3.2078,2789.2,2788.4,0.04904472]
[1738793842684,3.2078,2789.2,2788.4,0.81094472]
[1738793843082,3.2078,2788.5,2788.4,0.81094472]
[1738793843281,3.2078,2788.5,2788.4,0.04904472]
[1738793844184,0.57403,2787.2,2785.1,3.2078]
[1738793844491,3.2078,2785.7,2785.2,0.8539]
[1738793844685,3.2078,2785.4,2785.2,0.8539]
[1738793844887,3.2078,2785.7,2785.2,0.8539]
[1738793845086,3.2078,2785.3,2784.4,8.3567195]
[1738793845384,3.2078,2784.7,2784.4,8.3567195]
[1738793845588,3.2078,2784.7,2784.4,7.0878195]
[1738793845781,3.2078,2784.7,2784.2,8.4907675]
[1738793845982,3.2078,2784.3,2784.2,8.4907675]
[1738793846182,4.9748,2784.3,2784.2,8.4907675]
[1738793846387,3.2078,2784.3,2784.2,8.4907675]
[1738793846888,3.2078,2784.3,2783.1,3.2078]
[1738793847089,3.2078,2783.8,2783.1,3.2078]
[1738793847392,3.2078,2784.4,2783.4,3.2078]
[1738793847889,3.2078,2784.4,2783.7,3.2078]
[1738793848093,3.2078,2784.4,2784.0,0.04910545]
[1738793849194,3.2078,2784.4,2784.2,0.04910545]
[1738793850095,3.2078,2784.4,2784.3,0.04910545]
[1738793850396,3.2078,2784.4,2784.3,0.1046374]
[1738793850994,3.2078,2784.4,2784.3,0.15423519]
[1738793851192,8.2078,2784.4,2783.2,3.2078]
[1738793851486,0.05944865,2784.3,2784.0,42.40514561]
[1738793851698,3.78246,2784.1,2784.0,24.67618705]
[1738793851993,3.27263001,2784.1,2784.0,0.04959779]
[1738793852187,0.57484,2783.3,2782.2,3.2078]
[1738793852392,3.2078,2782.6,2781.6,3.13579999]
[1738793852596,3.2078,2781.7,2781.1,0.07200001]
[1738793852896,3.2078,2781.7,2781.3,10.7736]
[1738793853102,0.0053919,2781.7,2781.2,10.7736]
[1738793853291,0.0053919,2781.7,2781.0,3.2078]
[1738793853492,3.2078,2781.1,2779.0,3.2078]
[1738793853794,3.2078,2780.8,2779.0,3.2078]
[1738793853989,3.2078,2780.2,2779.1,4.58982513]
[1738793854195,3.2078,2780.2,2779.0,3.2078]
[1738793854196,3.2078,2780.5,2779.0,3.2078]
[1738793854395,0.0053919,2779.9,2779.7,0.04916715]
[1738793854598,0.0053919,2779.9,2779.8,0.91965757]
[1738793855093,3.2131919,2779.9,2779.8,20.91965757]
[1738793855292,3.2131919,2779.9,2779.8,0.91965757]
[1738793855493,3.2131919,2779.9,2779.8,0.96882472]
[1738793856798,3.2078,2779.6,2777.0,3.2078]
[1738793856998,3.2078,2777.1,2776.4,3.2078]
[1738793857190,16.66045322,2779.5,2776.4,20.0]
[1738793857191,3.2078,2777.6,2776.4,20.0]
[1738793857396,0.57597,2777.8,2776.1,1.6155]
[1738793857602,3.213202,2777.0,2776.1,1.6155]
[1738793857903,0.005402,2777.0,2776.1,1.6155]
[1738793858094,0.005402,2777.0,2776.1,21.6155]
[1738793858604,3.2078,2776.2,2775.5,19.50191404]
[1738793859399,8.2078,2776.2,2775.5,12.09623868]
[1738793859603,3.2078,2775.6,2775.3,22.47992965]
[1738793859797,1.946,2775.5,2775.3,3.17165839]
[1738793860001,0.03614161,2775.3,2773.8,3.2078]
[1738793860703,0.03614161,2775.3,2774.6,3.6024]
[1738793861095,3.2078,2774.7,2773.8,3.2078]
[1738793861296,3.2078,2774.3,2774.1,3.6024]
[1738793861696,3.2078,2775.4,2773.8,3.2078]
[1738793861896,0.005402,2775.5,2770.5,3.2078]
[1738793861897,0.577,2772.9,2770.5,3.2078]
[1738793862103,3.2078,2772.1,2770.9,3.2078]
[1738793862300,3.2078,2772.1,2771.5,0.04933113]
[1738793862695,0.00541184,2771.8,2771.5,0.04933113]
[1738793863105,3.21321184,2771.8,2771.5,0.04933113]
[1738793863403,3.21321184,2771.8,2771.6,0.04933113]
[1738793864397,0.7367,2774.2,2771.6,0.04933113]
[1738793864398,0.7367,2774.2,2771.7,0.04933113]
[1738793864605,3.2078,2772.6,2771.9,3.2078]
[1738793864797,3.2078,2772.6,2771.7,0.04933113]
[1738793864798,3.2078,2773.8,2772.5,3.2078]
[1738793865000,5.2738,2775.1,2773.7,3.2078]
[1738793865200,3.2078,2775.4,2774.5,3.2078]
[1738793865403,3.2078,2775.7,2775.0,3.2078]
[1738793865803,0.00541184,2775.2,2775.0,3.2078]
[1738793866708,0.00541184,2775.2,2775.1,0.04933113]
[1738793867211,0.00541184,2775.2,2775.1,20.04933113]
[1738793867511,0.07204351,2776.1,2775.1,20.04933113]
[1738793867708,3.2078,2776.0,2775.1,0.04933113]
[1738793867911,3.2078,2775.3,2773.7,3.2078]
[1738793868111,0.0593665,2775.9,2773.7,3.2078]
[1738793868112,3.2078,2774.8,2773.7,3.2078]
[1738793868308,3.2078,2774.4,2773.7,6.46493113]
[1738793868507,3.2078,2774.4,2773.7,3.2078]
[1738793869308,3.2078,2774.1,2773.8,0.00541184]
[1738793869507,3.2078,2774.1,2772.5,3.2078]
[1738793869508,2.077,2774.0,2772.5,3.2078]
[1738793869817,2.077,2774.0,2773.6,3.25713113]
[1738793870218,0.00541184,2774.3,2773.7,3.25713113]
[1738793870421,0.00541184,2774.3,2773.8,3.25713113]
[1738793870715,0.00541184,2774.3,2774.2,3.25713113]
[1738793871219,0.00541184,2774.3,2774.2,23.30640097]
[1738793872714,0.07206687,2775.2,2774.2,8.30640097]
[1738793873011,5.2728,2775.9,2775.1,6.46493113]
[1738793873217,3.2078,2776.2,2775.3,3.2078]
[1738793873520,5.2698,2776.2,2775.5,3.25713113]
[1738793873821,5.2698,2776.2,2774.3,0.8445]
[1738793873822,3.2078,2775.6,2775.0,3.2078]
[1738793874114,3.2078,2775.6,2774.9,3.25713113]
[1738793874319,3.2078,2775.6,2775.0,6.47034297]
[1738793874613,3.2078,2775.3,2774.4,3.25713113]
[1738793874813,3.2078,2775.0,2774.3,3.25713113]
[1738793876117,0.00541184,2774.9,2774.4,3.25713113]
[1738793876518,0.00541184,2774.9,2774.2,3.2078]
[1738793876718,0.00541184,2774.9,2774.3,3.25713113]
[1738793877319,0.00541184,2774.9,2774.2,3.2078]
[1738793877518,0.00541184,2774.9,2774.3,3.25713113]
[1738793878118,0.00541184,2774.9,2774.6,6.46493113]
[1738793878315,0.00541184,2774.9,2774.8,3.25713113]
[1738793878519,0.00541184,2774.9,2774.8,23.12321463]
[1738793878726,0.00541184,2774.9,2774.8,3.12321463]
[1738793879923,3.2078,2776.3,2774.8,19.91541463]
[1738793880121,2.038,2777.0,2776.2,3.2078]
[1738793880321,2.038,2777.0,2776.5,3.2078]
[1738793880517,2.038,2777.0,2776.3,3.2078]
[1738793880814,3.2078,2777.2,2776.3,3.2078]
[1738793881014,0.005402,2776.9,2776.4,0.005402]
[1738793881219,0.005402,2776.9,2776.8,3.2078]
[1738793881617,0.005402,2776.9,2776.8,20.0]
[1738793881817,3.50390857,2778.1,2776.8,20.0]
[1738793882019,3.2078,2778.1,2777.2,3.2078]
[1738793882329,5.2498,2778.1,2777.2,3.2078]
[1738793882521,3.2078,2777.6,2776.9,3.2078]
[1738793882723,3.2078,2777.6,2776.4,0.005402]
[1738793882724,0.57603,2777.5,2776.4,3.213202]
[1738793882929,3.78381,2777.6,2776.4,3.213202]
[1738793883224,0.005402,2777.2,2776.4,3.213202]
[1738793884825,0.005402,2777.2,2777.1,3.2078]
[1738793885127,0.005402,2777.2,2776.4,16.797602]
[1738793885128,0.005402,2777.2,2776.8,3.2078]
[1738793885629,5.2388,2778.5,2777.1,3.2078]
[1738793885824,5.2388,2778.5,2777.8,3.2078]
[1738793886229,5.81462,2778.5,2777.8,3.2078]
[1738793886523,5.2388,2778.5,2777.8,3.2078]
[1738793886927,0.005402,2778.4,2777.9,0.005402]
[1738793887435,0.005402,2778.4,2778.3,3.2078]
[1738793888525,0.005402,2778.4,2778.3,20.0]
[1738793888921,0.57553,2779.9,2778.3,8.2078]
[1738793889226,3.2078,2779.7,2778.8,3.2078]
[1738793889530,5.2298,2780.0,2779.1,3.2078]
[1738793889726,2.59752,2780.0,2779.1,3.2078]
[1738793889925,2.022,2780.0,2779.4,3.2078]
[1738793890119,2.022,2780.0,2779.2,3.2078]
[1738793890120,3.213202,2779.8,2779.2,3.2078]
[1738793890532,3.2078,2779.4,2779.2,0.005402]
[1738793890831,3.2078,2779.4,2778.1,3.2078]
[1738793891033,3.2078,2779.1,2778.1,3.2078]
[1738793891230,3.2078,2779.1,2778.3,3.2078]
[1738793891428,0.005402,2779.8,2679.4,17.8917847]
[1738793891429,3.2078,2778.4,2777.8,3.2078]
[1738793891623,3.2078,2778.4,2777.0,3.2078]
[1738793891827,3.2078,2777.9,2777.0,3.2078]
[1738793892024,3.2078,2778.5,2777.8,0.005402]
[1738793892232,0.005402,2778.0,2777.8,0.005402]
[1738793892429,0.005402,2778.0,2777.8,16.797602]
[1738793893135,3.2078,2779.0,2777.9,3.2078]
[1738793893331,3.2078,2779.3,2778.8,3.2078]
[1738793894032,3.2078,2779.3,2778.8,16.7922]
[1738793894335,0.005402,2779.3,2778.8,16.797602]
[1738793894532,3.2078,2780.2,2779.2,3.2078]
[1738793894736,3.2078,2780.2,2779.5,3.2078]
[1738793895635,3.2078,2780.2,2778.9,0.8917]
[1738793895636,0.005402,2780.1,2778.9,0.8917]
[1738793895930,3.2078,2779.9,2779.1,3.2078]
[1738793896435,0.005402,2780.1,2778.9,0.8917]
[1738793896436,3.2078,2779.3,2778.9,0.8917]
[1738793896638,3.2078,2779.3,2778.8,0.005402]
[1738793897033,6.8068,2778.9,2776.9,3.2078]
[1738793897226,3.2078,2777.4,2775.5,3.2078]
[1738793897426,3.2078,2777.4,2774.6,0.3608]
[1738793897427,3.2078,2776.6,2775.8,3.2078]
[1738793897829,3.2078,2776.6,2775.8,16.7922]
[1738793898034,3.2078,2777.7,2776.5,3.2078]
[1738793898334,0.57595,2777.9,2777.0,3.2078]
[1738793898633,3.213202,2777.4,2776.3,3.2078]
[1738793898840,0.005402,2777.4,2776.3,3.2078]
[1738793899030,0.005402,2777.4,2776.3,7.1688]
[1738793899231,0.005402,2777.4,2776.6,3.2078]
[1738793899437,0.005402,2777.4,2777.0,3.2078]
[1738793900040,0.005402,2777.4,2775.9,0.005402]
[1738793900041,3.2078,2777.2,2776.6,3.2078]
[1738793901732,3.2078,2776.8,2775.9,0.005402]
[1738793902135,3.2078,2776.8,2776.1,3.2078]
[1738793902637,3.2078,2777.1,2776.1,3.2078]
[1738793902836,3.2078,2777.1,2776.4,3.2078]
[1738793905333,0.005402,2777.4,2776.4,7.18436952]
[1738793905538,0.005402,2777.4,2776.3,3.2078]
[1738793905941,0.005402,2777.4,2777.2,3.2078]
[1738793906137,0.005402,2777.4,2777.2,10.3766]
[1738793906535,2.04315806,2777.9,2777.2,3.2078]
[1738793906738,2.04315806,2777.9,2777.8,3.2078]
[1738793907046,13.05240541,2778.9,2777.8,3.2078]
[1738793907341,13.05240541,2778.9,2778.8,3.2078]
[1738793908445,19.56207522,2778.9,2778.8,3.2078]
[1738793909343,6.50966981,2778.9,2778.8,3.2078]
[1738793909844,0.005402,2779.1,2778.8,8.2078]
[1738793910342,0.005402,2779.1,2778.8,3.2078]
[1738793913950,4.17679719,2779.7,2778.8,8.2078]
[1738793914145,4.17679719,2779.7,2779.5,3.2078]
[1738793914345,4.17679719,2780.1,2779.5,3.2078]
[1738793914552,4.17679719,2780.1,2780.0,3.2078]
[1738793914953,3.2078,2781.0,2780.0,8.2078]
[1738793915148,3.2078,2781.0,2780.3,3.2078]
[1738793915453,0.00342444,2780.8,2780.3,3.2078]
[1738793915744,0.00342444,2780.8,2780.7,3.2078]
[1738793916248,5.00342444,2780.8,2780.0,0.005402]
[1738793916450,4.75227719,2780.1,2779.3,3.2078]
[1738793916655,0.57553,2779.9,2779.3,3.2078]
[1738793916950,0.57553,2779.9,2778.6,0.8284]
[1738793916951,4.17679719,2780.5,2779.4,3.2078]
[1738793917147,4.17679719,2780.5,2780.0,3.2078]
[1738793917343,4.17679719,2780.5,2779.4,3.2078]
[1738793917655,3.2078,2780.6,2779.7,0.005402]
[1738793917656,4.17679719,2780.0,2779.7,0.005402]
[1738793918649,4.17679719,2780.0,2779.7,3.213202]
[1738793918848,4.17679719,2780.5,2779.7,3.213202]
[1738793919048,1.6934,2780.7,2779.7,3.213202]
[1738793919245,3.2078,2780.2,2779.7,0.005402]
[1738793919451,3.2078,2779.9,2778.4,3.2078]
[1738793919651,0.57564,2779.4,2778.0,3.2078]
[1738793919952,3.2078,2779.6,2778.3,3.2078]
[1738793920153,0.57566,2779.3,2778.3,3.2078]
[1738793920348,3.2078,2779.6,2778.9,3.2078]
[1738793920549,3.2078,2779.9,2779.2,3.2078]
[1738793920746,0.005402,2779.5,2779.1,3.2078]
[1738793920948,0.005402,2779.5,2779.4,3.2078]
[1738793921651,1.40529,2780.6,2779.4,8.2078]
[1738793921855,0.8299,2780.6,2780.2,3.2078]
[1738793922251,1.40529,2780.6,2780.0,3.2078]
[1738793922653,0.8299,2780.6,2780.0,3.2078]
[1738793922855,0.835302,2780.6,2780.0,3.2078]
[1738793923246,0.835302,2780.6,2780.2,3.2078]
[1738793924452,0.57543,2780.4,2779.5,3.2078]
[1738793924652,3.78321,2780.5,2779.5,3.2078]
[1738793924957,3.78321,2780.5,2779.8,3.2078]
[1738793925854,3.2078,2780.5,2779.8,3.2078]
[1738793926947,0.835302,2780.6,2780.1,3.2078]
[1738793927148,0.005402,2780.6,2780.1,3.2078]
[1738793927351,0.005402,2780.6,2780.4,3.2078]
[1738793929059,0.580792,2780.6,2780.0,3.2078]
[1738793929349,0.57541,2780.5,2780.0,3.2078]
[1738793929557,0.580792,2780.6,2780.0,3.2078]
[1738793929754,0.57541,2780.5,2780.0,3.2078]
[1738793929947,0.57554,2779.9,2779.3,3.2078]
[1738793930147,0.57547,2780.2,2779.6,3.2078]
[1738793930350,3.2078,2780.5,2779.6,3.2078]
[1738793930552,0.57546,2780.3,2779.8,3.2078]
[1738793931154,3.2078,2780.5,2779.8,3.2078]
[1738793932549,0.005402,2780.6,2779.8,3.2078]
[1738793932754,0.005402,2780.6,2780.4,3.2078]
[1738793934560,0.005402,2780.6,2780.2,3.2078]
[1738793934759,0.005402,2780.6,2780.4,3.2078]
[1738793935564,3.2078,2780.5,2780.0,3.2078]
[1738793936064,0.57543,2780.4,2779.9,3.2078]
[1738793936762,3.78321,2780.5,2779.9,3.2078]
[1738793936957,3.78321,2780.5,2779.0,0.005402]
[1738793936958,0.57545,2780.3,2779.6,3.2078]
[1738793937161,0.57543,2780.4,2779.9,3.2078]
[1738793937555,0.57544,2780.4,2779.9,3.2078]
[1738793938361,0.57557,2779.8,2779.0,0.005402]
[1738793938665,2.48448,2780.2,2779.0,0.005402]
[1738793939055,0.57549,2780.1,2779.0,0.005402]
[1738793940061,1.909,2780.2,2779.0,0.005402]
[1738793940261,0.57551,2780.0,2779.0,0.005402]
[1738793940562,1.43887,2779.8,2779.0,0.005402]
[1738793940771,1.909,2780.2,2779.0,0.005402]
[1738793940772,0.57566,2779.3,2779.0,0.005402]
[1738793941059,3.2078,2780.0,2779.0,0.005402]
[1738793941455,0.57553,2779.9,2779.0,0.005402]
[1738793941659,0.57559,2779.6,2779.0,0.005402]
[1738793942265,0.5756,2779.6,2779.0,0.005402]
[1738793942466,0.57559,2779.6,2779.0,0.005402]
[1738793942662,3.2078,2779.7,2779.0,0.005402]
[1738793942864,0.57569,2779.2,2778.5,3.2078]
[1738793943069,0.5757,2779.1,2778.5,3.2078]
[1738793943261,0.8884,2779.1,2778.5,3.2078]
[1738793943564,3.2078,2778.8,2778.1,3.2078]
[1738793943868,1.885,2779.0,2777.8,3.2078]
[1738793944171,0.005402,2778.7,2778.2,3.213202]
[1738793944465,0.005402,2778.7,2778.2,0.005402]
[1738793944659,0.005402,2778.7,2777.3,3.2078]
[1738793944969,3.2078,2778.5,2777.3,3.2078]
[1738793945466,3.2078,2778.0,2777.3,3.2078]
[1738793945964,7.38459719,2778.6,2777.4,0.005402]
[1738793946467,7.96040719,2778.6,2777.4,0.005402]
[1738793947062,3.2078,2778.6,2778.1,3.2078]
[1738793947261,3.2078,2778.6,2777.4,0.005402]
[1738793948060,3.2078,2778.6,2778.0,3.2078]
[1738793948664,3.78366,2778.3,2777.4,0.005402]
[1738793948962,3.2078,2778.0,2777.4,0.005402]
[1738793949167,3.2078,2778.0,2777.6,3.2078]
[1738793949666,3.2078,2778.0,2777.4,0.005402]
[1738793951258,3.2078,2778.4,2777.6,3.2078]
[1738793951465,3.2078,2778.4,2777.4,0.005402]
[1738793951672,7.89133377,2777.8,2777.4,0.005402]
[1738793952873,4.17679719,2777.6,2776.2,3.2078]
[1738793953174,3.2078,2776.3,2774.4,3.2078]
[1738793953366,3.78419,2775.8,2774.3,0.838]
[1738793953672,3.2078,2775.5,2774.3,0.838]
[1738793953972,3.2078,2775.5,2774.6,0.005402]
[1738793953973,0.005402,2775.2,2774.6,0.005402]
[1738793954168,0.005402,2775.2,2774.9,0.04926944]
[1738793955163,3.2078,2775.1,2775.0,0.04926944]
[1738793955869,10.0748,2775.1,2774.6,0.005402]
[1738793956075,3.2078,2774.7,2774.0,3.2078]
[1738793956373,3.2078,2774.9,2774.0,3.2078]
[1738793956966,3.213202,2775.2,2774.6,3.2078]
[1738793957370,0.005402,2775.2,2774.3,3.2078]
[1738793957969,0.005402,2775.2,2775.1,3.2078]
[1738793958169,4.17679719,2776.8,2775.1,3.2078]
[1738793958370,7.38459719,2776.8,2775.6,3.2078]
[1738793958671,3.2078,2776.5,2775.6,3.2078]
[1738793959473,0.005402,2776.3,2775.8,0.005402]
[1738793960268,0.005402,2776.3,2776.0,0.04926944]
[1738793960869,5.0668,2776.2,2775.8,0.005402]
[1738793961170,3.2078,2775.9,2774.2,3.2078]
[1738793961373,3.2078,2774.9,2774.2,3.2078]
[1738793962066,1.857,2775.0,2773.9,3.2078]
[1738793962270,0.005402,2774.8,2774.3,0.005402]
[1738793963076,4.18219919,2774.8,2773.9,3.2078]
[1738793963273,4.18219919,2774.8,2771.8,1.44298]
[1738793963274,4.17679719,2774.1,2773.1,3.2078]
[1738793963472,3.2078,2773.8,2772.6,3.2078]
[1738793963667,4.17679719,2773.6,2772.6,3.2078]
[1738793964474,0.005402,2773.4,2772.6,3.2078]
[1738793965476,0.005402,2773.4,2773.1,3.2078]
[1738793965674,1.872,2773.3,2772.7,3.2078]
[1738793965874,1.872,2773.3,2771.3,4.17679719]
[1738793965875,3.2078,2773.1,2772.4,3.2078]
[1738793966081,4.17679719,2772.6,2771.9,3.2078]
[1738793966584,0.00541204,2772.5,2771.9,3.2078]
[1738793967081,0.00541204,2772.5,2772.0,3.2078]
[1738793967280,0.00541204,2772.5,2772.3,3.2078]
[1738793967974,0.00541204,2772.5,2771.8,3.2078]
[1738793968284,0.00541204,2772.5,2771.9,3.2078]
[1738793969276,0.00541204,2772.5,2771.9,8.2078]
[1738793969483,0.00541204,2772.5,2772.2,3.2078]
[1738793970282,0.00541204,2772.5,2771.9,3.2078]
[1738793970889,0.00541204,2772.5,2772.4,3.2078]
[1738793971384,5.0838,2774.0,2772.4,8.2078]
[1738793971572,5.0838,2774.0,2771.8,0.8797]
[1738793971573,5.0838,2774.0,2772.7,3.2078]
[1738793972282,5.0838,2774.0,2773.3,0.04926944]
[1738793972583,0.00541204,2773.6,2773.3,0.04926944]
[1738793972780,0.00541204,2773.6,2773.4,3.2078]
[1738793973176,0.00541204,2773.6,2773.5,0.04926944]
[1738793973683,7.38459719,2774.6,2773.5,5.04926944]
[1738793973982,3.2078,2774.6,2774.0,3.2078]
[1738793974381,3.2078,2774.6,2774.3,0.04926944]
[1738793975485,3.2078,2774.6,2774.4,0.04926944]
[1738793975886,3.21321204,2774.7,2774.4,0.04926944]
[1738793976280,0.57671,2774.2,2773.5,3.2078]
[1738793976483,0.5767,2774.3,2773.5,3.2078]
[1738793976880,4.0343,2774.5,2773.5,3.2078]
[1738793977180,0.00541204,2774.7,2773.6,4.67246173]
[1738793977381,0.57692,2773.2,2771.7,3.2078]
[1738793977585,3.2078,2772.9,2771.7,3.2078]
[1738793977777,3.78486,2772.5,2771.1,1.7994]
[1738793977977,3.2078,2772.2,2771.1,1.7994]
[1738793978382,3.2078,2772.2,2771.6,0.04926944]
[1738793978884,0.00541204,2771.9,2771.6,0.04926944]
[1738793979284,0.00541204,2771.9,2771.7,0.04926944]
[1738793980077,3.2078,2771.8,2771.7,0.04926944]
[1738793980481,3.2078,2771.8,2771.4,0.00541204]
[1738793980684,3.2078,2771.5,2771.4,0.00541204]
[1738793980883,3.2078,2771.5,2770.7,3.2078]
[1738793981684,3.2078,2771.5,2770.6,3.2078]
[1738793981883,3.2078,2771.1,2770.2,3.2078]
[1738793983487,3.2078,2771.1,2770.7,3.2078]
[1738793983786,3.2078,2771.1,2769.0,0.8733]
[1738793983787,3.2078,2770.8,2769.0,0.8733]
[1738793983992,6.14179719,2771.2,2768.4,3.2078]
[1738793983993,3.2078,2769.1,2768.4,3.2078]
[1738793984289,7.38459719,2769.1,2767.9,4.0358]